[Event "*** SCC Grand Prix: Titled Tuesday Blitz"]
[Site "Chess.com"]
[Date "2020.09.29"]
[Round "3"]
[White "LionTheLeon_06"]
[Black "ElusiveCat"]
[Result "1/2-1/2"]
[WhiteElo "2601"]
[BlackElo "2296"]
[TimeControl "180+1"]
[EndTime "10:28:31 PDT"]
[Termination "Game drawn by repetition"]

1. c4 {[%clk 0:03:00.9]} 1... Nf6 {[%clk 0:02:29.8]} 2. Nf3 {[%clk 0:02:58.5]}
2... e6 {[%clk 0:02:21.1]} 3. b3 {[%clk 0:02:56.7]} 3... a6 {[%clk 0:02:18.9]}
4. Bb2 {[%clk 0:02:56.6]} 4... b5 {[%clk 0:02:16.4]} 5. e3 {[%clk 0:02:56.9]}
5... bxc4 {[%clk 0:02:13.9]} 6. Bxc4 {[%clk 0:02:53.9]} 6... c5 {[%clk 0:02:10]}
7. O-O {[%clk 0:02:49.7]} 7... Be7 {[%clk 0:02:09.6]} 8. d4 {[%clk 0:02:48.4]}
8... cxd4 {[%clk 0:02:08.7]} 9. Nxd4 {[%clk 0:02:48.2]} 9... Bb7 {[%clk
0:02:08.1]} 10. Nc3 {[%clk 0:02:48]} 10... O-O {[%clk 0:02:07.2]} 11. Na4 {[%clk
0:02:43.1]} 11... Nc6 {[%clk 0:02:02.6]} 12. Be2 {[%clk 0:02:39.2]} 12... Nxd4
{[%clk 0:01:43.1]} 13. Qxd4 {[%clk 0:02:39.1]} 13... Rc8 {[%clk 0:01:39.2]} 14.
Rfd1 {[%clk 0:02:33.9]} 14... d5 {[%clk 0:01:35.6]} 15. Rac1 {[%clk 0:02:30.5]}
15... Rxc1 {[%clk 0:00:56.4]} 16. Rxc1 {[%clk 0:02:30.1]} 16... Bd6 {[%clk
0:00:52]} 17. Qa7 {[%clk 0:02:06]} 17... Qb8 {[%clk 0:00:45.9]} 18. Qxb8 {[%clk
0:02:04.5]} 18... Rxb8 {[%clk 0:00:46.8]} 19. Bd4 {[%clk 0:01:55]} 19... Nd7
{[%clk 0:00:38.3]} 20. f4 {[%clk 0:01:52.5]} 20... Rc8 {[%clk 0:00:36.7]} 21.
Rxc8+ {[%clk 0:01:49.1]} 21... Bxc8 {[%clk 0:00:37.6]} 22. Kf2 {[%clk
0:01:49.1]} 22... f6 {[%clk 0:00:37.4]} 23. g4 {[%clk 0:01:43.4]} 23... Kf7
{[%clk 0:00:36.4]} 24. h4 {[%clk 0:01:42.6]} 24... Bb7 {[%clk 0:00:36.1]} 25. g5
{[%clk 0:01:42.5]} 25... e5 {[%clk 0:00:35.7]} 26. Bc3 {[%clk 0:01:39.4]} 26...
exf4 {[%clk 0:00:27.7]} 27. exf4 {[%clk 0:01:29.3]} 27... Bxf4 {[%clk
0:00:27.2]} 28. gxf6 {[%clk 0:01:30]} 28... gxf6 {[%clk 0:00:27]} 29. Bh5+
{[%clk 0:01:29.9]} 29... Ke7 {[%clk 0:00:26.1]} 30. Bd4 {[%clk 0:01:29.2]} 30...
Be5 {[%clk 0:00:24.9]} 31. Ke3 {[%clk 0:01:29.3]} 31... Bg3 {[%clk 0:00:19.9]}
32. Bg4 {[%clk 0:01:23.1]} 32... Bxh4 {[%clk 0:00:16.9]} 33. Bf5 {[%clk
0:01:14.8]} 33... Bg5+ {[%clk 0:00:16.5]} 34. Kf3 {[%clk 0:01:15.3]} 34... h5
{[%clk 0:00:16.7]} 35. Kg3 {[%clk 0:01:11.9]} 35... Ne5 {[%clk 0:00:15.9]} 36.
Nc5 {[%clk 0:01:11.5]} 36... Bc6 {[%clk 0:00:14.5]} 37. Nxa6 {[%clk 0:01:11.4]}
37... Nd7 {[%clk 0:00:14.1]} 38. Nb4 {[%clk 0:01:10.7]} 38... Bb7 {[%clk
0:00:14.1]} 39. a4 {[%clk 0:01:10.7]} 39... Kd6 {[%clk 0:00:13.9]} 40. a5 {[%clk
0:01:10.5]} 40... Nc5 {[%clk 0:00:14.2]} 41. Bc2 {[%clk 0:01:07.5]} 41... Na6
{[%clk 0:00:13.8]} 42. Nd3 {[%clk 0:01:07.6]} 42... h4+ {[%clk 0:00:12.6]} 43.
Kh2 {[%clk 0:01:06.3]} 43... Bc8 {[%clk 0:00:12.8]} 44. b4 {[%clk 0:01:05.8]}
44... Kc6 {[%clk 0:00:12.9]} 45. Ba4+ {[%clk 0:01:04.9]} 45... Kb7 {[%clk
0:00:13.3]} 46. b5 {[%clk 0:01:05.4]} 46... Nb8 {[%clk 0:00:13.2]} 47. Nc5+
{[%clk 0:01:05.4]} 47... Ka8 {[%clk 0:00:13.6]} 48. b6 {[%clk 0:01:05.7]} 48...
Bb7 {[%clk 0:00:13]} 49. Bb5 {[%clk 0:01:05]} 49... Bf4+ {[%clk 0:00:11.7]} 50.
Kh3 {[%clk 0:01:04.5]} 50... Bg3 {[%clk 0:00:12.3]} 51. a6 {[%clk 0:01:04.3]}
51... Bc8+ {[%clk 0:00:12.7]} 52. Nd7 {[%clk 0:01:02.3]} 52... Nxd7 {[%clk
0:00:12.4]} 53. Bxd7 {[%clk 0:01:02.6]} 53... Bxa6 {[%clk 0:00:12.4]} 54. Kg2
{[%clk 0:00:58.2]} 54... Bb7 {[%clk 0:00:12.2]} 55. Kf3 {[%clk 0:00:57.8]} 55...
Kb8 {[%clk 0:00:12.2]} 56. Kg4 {[%clk 0:00:56.5]} 56... Bc8 {[%clk 0:00:12.5]}
57. Bxc8 {[%clk 0:00:56.5]} 57... Kxc8 {[%clk 0:00:13.4]} 58. Bxf6 {[%clk
0:00:56.4]} 58... Kb7 {[%clk 0:00:13.8]} 59. Bd4 {[%clk 0:00:56.6]} 59... Kc6
{[%clk 0:00:14.1]} 60. Kh3 {[%clk 0:00:56.8]} 60... Kb7 {[%clk 0:00:13.4]} 61.
Kg4 {[%clk 0:00:56.5]} 61... Be1 {[%clk 0:00:13]} 62. Be3 {[%clk 0:00:53.5]}
62... Ba5 {[%clk 0:00:12.7]} 63. Kxh4 {[%clk 0:00:53.7]} 63... Bxb6 {[%clk
0:00:13.3]} 64. Bd2 {[%clk 0:00:54.2]} 64... Kc6 {[%clk 0:00:13.2]} 65. Kg4
{[%clk 0:00:54.8]} 65... Kb5 {[%clk 0:00:13.7]} 66. Kf3 {[%clk 0:00:55.4]} 66...
Kc4 {[%clk 0:00:14.3]} 67. Ke2 {[%clk 0:00:56]} 67... d4 {[%clk 0:00:14.8]} 68.
Kd1 {[%clk 0:00:56.6]} 68... d3 {[%clk 0:00:14]} 69. Bg5 {[%clk 0:00:56.9]}
69... Bd4 {[%clk 0:00:14.1]} 70. Bh4 {[%clk 0:00:57.2]} 70... Bc3 {[%clk
0:00:14.5]} 71. Bg5 {[%clk 0:00:57.4]} 71... Bd4 {[%clk 0:00:14.8]} 72. Bh4
{[%clk 0:00:57.7]} 72... Kd5 {[%clk 0:00:15.2]} 73. Bg3 {[%clk 0:00:57.7]} 73...
Ke4 {[%clk 0:00:15.6]} 74. Bh4 {[%clk 0:00:57.5]} 74... Be3 {[%clk 0:00:16]} 75.
Bd8 {[%clk 0:00:57.2]} 75... Bf4 {[%clk 0:00:16]} 76. Be7 {[%clk 0:00:57.3]}
76... Be5 {[%clk 0:00:15.8]} 77. Bd8 {[%clk 0:00:57.5]} 77... Bd4 {[%clk
0:00:16.4]} 78. Be7 {[%clk 0:00:57.7]} 78... Be3 {[%clk 0:00:15.9]} 79. Bd8
{[%clk 0:00:57.8]} 79... Bf4 {[%clk 0:00:16.2]} 80. Be7 {[%clk 0:00:58]} 80...
Be5 {[%clk 0:00:16.6]} 81. Bd8 {[%clk 0:00:58.3]} 81... Bd4 {[%clk 0:00:17.5]}
82. Be7 {[%clk 0:00:58.5]} 82... Be3 {[%clk 0:00:18.4]} 83. Bd8 {[%clk
0:00:58.8]} 1/2-1/2

[Event "*** SCC Grand Prix: Titled Tuesday Blitz"]
[Site "Chess.com"]
[Date "2020.09.29"]
[Round "3"]
[White "AntonovaNadezhda"]
[Black "malakismayil"]
[Result "0-1"]
[WhiteElo "2062"]
[BlackElo "2328"]
[TimeControl "180+1"]
[EndTime "10:28:31 PDT"]
[Termination "malakismayil won on time"]

1. Nf3 {[%clk 0:03:00.9]} 1... Nf6 {[%clk 0:02:58.9]} 2. d4 {[%clk 0:03:00.5]}
2... e6 {[%clk 0:02:59.3]} 3. e3 {[%clk 0:03:00.6]} 3... d5 {[%clk 0:02:58.8]}
4. Nbd2 {[%clk 0:03:00.6]} 4... Be7 {[%clk 0:02:59.2]} 5. Bd3 {[%clk 0:03:00.5]}
5... O-O {[%clk 0:02:59.5]} 6. b3 {[%clk 0:03:00.7]} 6... c5 {[%clk 0:02:59.8]}
7. Bb2 {[%clk 0:03:00.9]} 7... b6 {[%clk 0:03:00.3]} 8. O-O {[%clk 0:03:00.7]}
8... Bb7 {[%clk 0:03:00.7]} 9. Ne5 {[%clk 0:03:00.9]} 9... Nbd7 {[%clk
0:02:59.5]} 10. f4 {[%clk 0:03:00.5]} 10... Ne4 {[%clk 0:02:52.3]} 11. a3 {[%clk
0:02:58]} 11... f6 {[%clk 0:02:45.5]} 12. Nxd7 {[%clk 0:02:53.5]} 12... Qxd7
{[%clk 0:02:46.4]} 13. Bxe4 {[%clk 0:02:43.1]} 13... dxe4 {[%clk 0:02:44.4]} 14.
c4 {[%clk 0:02:42.8]} 14... cxd4 {[%clk 0:02:30.6]} 15. Bxd4 {[%clk 0:02:39.1]}
15... Bc5 {[%clk 0:02:06.9]} 16. Bxc5 {[%clk 0:02:31.1]} 16... bxc5 {[%clk
0:02:07.8]} 17. b4 {[%clk 0:02:30.7]} 17... Rac8 {[%clk 0:01:56.4]} 18. b5
{[%clk 0:02:27.1]} 18... Qd3 {[%clk 0:01:50.4]} 19. Qe1 {[%clk 0:02:15]} 19...
Rfd8 {[%clk 0:01:46.7]} 20. Rf2 {[%clk 0:02:14.3]} 20... a6 {[%clk 0:01:27.4]}
21. a4 {[%clk 0:02:12.9]} 21... axb5 {[%clk 0:01:25.1]} 22. axb5 {[%clk
0:02:12.4]} 22... Ra8 {[%clk 0:01:24.4]} 23. Rxa8 {[%clk 0:01:44.3]} 23... Rxa8
{[%clk 0:01:25.3]} 24. Qb1 {[%clk 0:01:35.7]} 24... Qc3 {[%clk 0:01:08.2]} 25.
Nxe4 {[%clk 0:01:09.4]} 25... Qa1 {[%clk 0:01:03.8]} 26. Nd2 {[%clk 0:00:48.2]}
26... Qc3 {[%clk 0:00:41]} 27. Nf1 {[%clk 0:00:24.2]} 27... Qxc4 {[%clk
0:00:31.1]} 28. Qb2 {[%clk 0:00:21.7]} 28... Qe4 {[%clk 0:00:20.4]} 29. Qc2
{[%clk 0:00:16.6]} 29... Qb4 {[%clk 0:00:15.2]} 30. Qb2 {[%clk 0:00:16]} 30...
Qc4 {[%clk 0:00:12.6]} 31. Rc2 {[%clk 0:00:13.2]} 31... Qd5 {[%clk 0:00:12.2]}
32. b6 {[%clk 0:00:11]} 32... Rc8 {[%clk 0:00:09.3]} 33. h3 {[%clk 0:00:09.2]}
33... c4 {[%clk 0:00:09.4]} 34. Qd4 {[%clk 0:00:07.2]} 34... Qxd4 {[%clk
0:00:07.2]} 35. exd4 {[%clk 0:00:07.1]} 35... c3 {[%clk 0:00:07.8]} 36. Ne3
{[%clk 0:00:06.8]} 36... Be4 {[%clk 0:00:07.4]} 37. Rc1 {[%clk 0:00:06]} 37...
c2 {[%clk 0:00:07]} 38. Kf2 {[%clk 0:00:05.7]} 38... Kf8 {[%clk 0:00:06.8]} 39.
Ke2 {[%clk 0:00:05.6]} 39... Ke7 {[%clk 0:00:05.6]} 40. Kd2 {[%clk 0:00:05.6]}
40... Rb8 {[%clk 0:00:06]} 41. g3 {[%clk 0:00:05.9]} 41... Rxb6 {[%clk
0:00:05.3]} 42. Nxc2 {[%clk 0:00:06]} 42... Rb2 {[%clk 0:00:04]} 43. Kc3 {[%clk
0:00:05.5]} 43... Rxc2+ {[%clk 0:00:03.2]} 44. Rxc2 {[%clk 0:00:05.7]} 44...
Bxc2 {[%clk 0:00:04.1]} 45. Kxc2 {[%clk 0:00:06.4]} 45... Kd6 {[%clk 0:00:04.6]}
46. Kd3 {[%clk 0:00:07.1]} 46... Kd5 {[%clk 0:00:04.5]} 47. Ke3 {[%clk
0:00:07.6]} 47... f5 {[%clk 0:00:02.7]} 48. Kd3 {[%clk 0:00:07.6]} 48... h5
{[%clk 0:00:02.9]} 49. Ke3 {[%clk 0:00:05.1]} 49... Kc4 {[%clk 0:00:02.4]} 0-1

[Event "*** SCC Grand Prix: Titled Tuesday Blitz"]
[Site "Chess.com"]
[Date "2020.09.29"]
[Round "3"]
[White "chigorin28"]
[Black "BAS8892"]
[Result "0-1"]
[WhiteElo "2423"]
[BlackElo "2668"]
[TimeControl "180+1"]
[EndTime "10:28:36 PDT"]
[Termination "BAS8892 won by resignation"]

1. d4 {[%clk 0:03:00.9]} 1... d5 {[%clk 0:02:59.3]} 2. Nf3 {[%clk 0:03:00.4]}
2... Nf6 {[%clk 0:02:58.3]} 3. Bf4 {[%clk 0:02:59.3]} 3... e6 {[%clk 0:02:57.8]}
4. e3 {[%clk 0:02:58.7]} 4... Bd6 {[%clk 0:02:57.6]} 5. c3 {[%clk 0:02:55.5]}
5... O-O {[%clk 0:02:56.7]} 6. Ne5 {[%clk 0:02:51.9]} 6... c5 {[%clk 0:02:53.6]}
7. Nd2 {[%clk 0:02:51.3]} 7... Qc7 {[%clk 0:02:50]} 8. h3 {[%clk 0:02:48.9]}
8... Nfd7 {[%clk 0:02:47.5]} 9. Ndf3 {[%clk 0:02:43.1]} 9... f6 {[%clk
0:02:46.9]} 10. Nxd7 {[%clk 0:02:42.4]} 10... Bxd7 {[%clk 0:02:42.7]} 11. Bxd6
{[%clk 0:02:38.6]} 11... Qxd6 {[%clk 0:02:42.7]} 12. Be2 {[%clk 0:02:30.6]}
12... Nc6 {[%clk 0:02:41.4]} 13. O-O {[%clk 0:02:29.6]} 13... e5 {[%clk
0:02:41.6]} 14. dxe5 {[%clk 0:02:26.2]} 14... fxe5 {[%clk 0:02:41.4]} 15. c4
{[%clk 0:01:46.4]} 15... d4 {[%clk 0:02:40.7]} 16. exd4 {[%clk 0:01:40]} 16...
exd4 {[%clk 0:02:39.6]} 17. Bd3 {[%clk 0:01:15.7]} 17... h6 {[%clk 0:02:38.4]}
18. Re1 {[%clk 0:01:14.8]} 18... Rf6 {[%clk 0:02:37.9]} 19. Be4 {[%clk
0:00:36.5]} 19... Raf8 {[%clk 0:02:36.3]} 20. Bd5+ {[%clk 0:00:36.6]} 20... Kh8
{[%clk 0:02:35.6]} 21. Qd2 {[%clk 0:00:31.6]} 21... b6 {[%clk 0:01:59.5]} 22.
Re2 {[%clk 0:00:31.5]} 22... Ne7 {[%clk 0:01:50.6]} 23. Be4 {[%clk 0:00:28.9]}
23... Ng6 {[%clk 0:01:50.3]} 24. Bxg6 {[%clk 0:00:26.7]} 24... Rxg6 {[%clk
0:01:50.3]} 25. Ne5 {[%clk 0:00:24.9]} 25... Rgf6 {[%clk 0:01:49.3]} 26. Rae1
{[%clk 0:00:23.3]} 26... Bf5 {[%clk 0:01:45.6]} 27. Nd3 {[%clk 0:00:19.5]} 27...
Rg6 {[%clk 0:01:42.8]} 28. Kh1 {[%clk 0:00:18.6]} 28... Qc6 {[%clk 0:01:39.9]}
29. f3 {[%clk 0:00:18.2]} 29... Rgf6 {[%clk 0:01:34.6]} 30. Ne5 {[%clk
0:00:18.2]} 30... Qd6 {[%clk 0:01:34.3]} 31. b3 {[%clk 0:00:16.1]} 31... Bh7
{[%clk 0:01:28.4]} 32. Ng4 {[%clk 0:00:15.4]} 32... Rf4 {[%clk 0:01:25.7]} 33.
Re6 {[%clk 0:00:14.6]} 33... Qd8 {[%clk 0:01:22.9]} 34. Re7 {[%clk 0:00:09.5]}
34... R4f7 {[%clk 0:01:13.1]} 35. Rxf7 {[%clk 0:00:08.8]} 35... Rxf7 {[%clk
0:01:13.1]} 36. Ne5 {[%clk 0:00:05.5]} 36... Rf8 {[%clk 0:01:12.8]} 37. Ng4
{[%clk 0:00:04.6]} 37... a6 {[%clk 0:01:06]} 38. Re5 {[%clk 0:00:04.7]} 38...
Qd6 {[%clk 0:01:04.5]} 39. Rd5 {[%clk 0:00:01.6]} 39... Qe7 {[%clk 0:01:01.7]}
40. Qf2 {[%clk 0:00:01.6]} 40... Bf5 {[%clk 0:00:58.4]} 41. Re5 {[%clk
0:00:01.3]} 41... Qc7 {[%clk 0:00:56.2]} 42. Re1 {[%clk 0:00:01.2]} 42... d3
{[%clk 0:00:54.3]} 43. Qd2 {[%clk 0:00:01.1]} 43... b5 {[%clk 0:00:52.9]} 44.
Nf2 {[%clk 0:00:01.5]} 44... Rd8 {[%clk 0:00:51]} 45. Ne4 {[%clk 0:00:01.7]}
45... bxc4 {[%clk 0:00:49.5]} 46. bxc4 {[%clk 0:00:01.8]} 46... Qe5 {[%clk
0:00:48.4]} 47. Nc3 {[%clk 0:00:01.9]} 47... Qd4 {[%clk 0:00:47.7]} 48. Nd5
{[%clk 0:00:01.8]} 48... Qxc4 {[%clk 0:00:46.8]} 49. Ne3 {[%clk 0:00:02.3]}
49... Qf4 {[%clk 0:00:46.7]} 50. Nf1 {[%clk 0:00:01.2]} 50... Qxd2 {[%clk
0:00:45.6]} 51. Nxd2 {[%clk 0:00:02.1]} 51... Rc8 {[%clk 0:00:43.9]} 52. Re5
{[%clk 0:00:02.2]} 52... Bg6 {[%clk 0:00:41.3]} 53. Nc4 {[%clk 0:00:02.3]} 53...
Rc6 {[%clk 0:00:39.1]} 54. Rd5 {[%clk 0:00:01.3]} 54... Bf7 {[%clk 0:00:38.2]}
55. Rd8+ {[%clk 0:00:01.2]} 55... Bg8 {[%clk 0:00:34.9]} 56. Ne5 {[%clk
0:00:02.1]} 56... Re6 {[%clk 0:00:33.1]} 57. Nxd3 {[%clk 0:00:02.4]} 57... c4
{[%clk 0:00:33.3]} 58. Nf4 {[%clk 0:00:02.3]} 58... Rf6 {[%clk 0:00:31.7]} 59.
Ne2 {[%clk 0:00:01.9]} 59... Kh7 {[%clk 0:00:30.6]} 60. Nc3 {[%clk 0:00:02.2]}
60... Re6 {[%clk 0:00:29.5]} 61. Ne4 {[%clk 0:00:02.2]} 61... Rb6 {[%clk
0:00:28.2]} 62. Nc3 {[%clk 0:00:02.2]} 62... Rb2 {[%clk 0:00:27.3]} 63. Kh2
{[%clk 0:00:02.2]} 63... Rc2 {[%clk 0:00:27.4]} 64. Ne4 {[%clk 0:00:02.1]} 64...
Be6 {[%clk 0:00:26.2]} 65. Rc8 {[%clk 0:00:02.3]} 65... Bxc8 {[%clk 0:00:25.6]}
0-1

[Event "*** SCC Grand Prix: Titled Tuesday Blitz"]
[Site "Chess.com"]
[Date "2020.09.29"]
[Round "3"]
[White "manitodeplomo"]
[Black "Sankalp_Gupta2003"]
[Result "1-0"]
[WhiteElo "2584"]
[BlackElo "2766"]
[TimeControl "180+1"]
[EndTime "10:28:39 PDT"]
[Termination "manitodeplomo won by checkmate"]

1. d4 {[%clk 0:01:21.1]} 1... Nf6 {[%clk 0:02:57.9]} 2. c4 {[%clk 0:01:19]} 2...
e6 {[%clk 0:02:58.3]} 3. Nf3 {[%clk 0:01:17.8]} 3... d5 {[%clk 0:02:58.6]} 4.
Nc3 {[%clk 0:01:16.3]} 4... a6 {[%clk 0:02:58.1]} 5. c5 {[%clk 0:01:16.1]} 5...
b6 {[%clk 0:02:58.2]} 6. cxb6 {[%clk 0:01:17]} 6... cxb6 {[%clk 0:02:59.1]} 7.
Bf4 {[%clk 0:01:15.2]} 7... Bb7 {[%clk 0:02:59.7]} 8. e3 {[%clk 0:01:15.4]} 8...
Be7 {[%clk 0:03:00.4]} 9. Be2 {[%clk 0:01:15.6]} 9... O-O {[%clk 0:03:01]} 10.
O-O {[%clk 0:01:16.3]} 10... Nbd7 {[%clk 0:03:01.7]} 11. Qb3 {[%clk 0:01:16.9]}
11... b5 {[%clk 0:03:01.2]} 12. Rfc1 {[%clk 0:01:16.6]} 12... Nb6 {[%clk
0:02:59.6]} 13. a4 {[%clk 0:01:16.1]} 13... b4 {[%clk 0:02:59.9]} 14. a5 {[%clk
0:01:14]} 14... Nc4 {[%clk 0:02:48.7]} 15. Nd1 {[%clk 0:01:09.6]} 15... Nxa5
{[%clk 0:02:42.3]} 16. Qa4 {[%clk 0:01:08.3]} 16... Nc4 {[%clk 0:02:42.1]} 17.
b3 {[%clk 0:00:59.5]} 17... Nb6 {[%clk 0:02:21.3]} 18. Qa5 {[%clk 0:00:58.2]}
18... Nbd7 {[%clk 0:01:57.1]} 19. Bc7 {[%clk 0:00:54.6]} 19... Qe8 {[%clk
0:01:55.4]} 20. Nb2 {[%clk 0:00:50.6]} 20... Ne4 {[%clk 0:00:47.6]} 21. Na4
{[%clk 0:00:50.2]} 21... Ndf6 {[%clk 0:00:40.4]} 22. Nb6 {[%clk 0:00:48.9]}
22... Ra7 {[%clk 0:00:40.4]} 23. Bb5 {[%clk 0:00:37.7]} 23... axb5 {[%clk
0:00:20.4]} 24. Qxa7 {[%clk 0:00:37.1]} 24... Bc6 {[%clk 0:00:21]} 25. Ne5
{[%clk 0:00:36.4]} 25... Nc3 {[%clk 0:00:20]} 26. Kf1 {[%clk 0:00:27.9]} 26...
Nfe4 {[%clk 0:00:20]} 27. Rc2 {[%clk 0:00:24.3]} 27... f6 {[%clk 0:00:18.9]} 28.
Nd3 {[%clk 0:00:20.6]} 28... Qh5 {[%clk 0:00:16.9]} 29. Bf4 {[%clk 0:00:16]}
29... Bd6 {[%clk 0:00:09.3]} 30. Bxd6 {[%clk 0:00:15.6]} 30... Nxd6 {[%clk
0:00:10.2]} 31. Qe7 {[%clk 0:00:16]} 31... Qxh2 {[%clk 0:00:09.3]} 32. Qxe6+
{[%clk 0:00:15.1]} 32... Kh8 {[%clk 0:00:08.9]} 33. Qh3 {[%clk 0:00:16]} 33...
Qxh3 {[%clk 0:00:07.9]} 34. gxh3 {[%clk 0:00:16.9]} 34... Rb8 {[%clk 0:00:07.1]}
35. Ra6 {[%clk 0:00:11.5]} 35... Bb7 {[%clk 0:00:07.3]} 36. Ra7 {[%clk
0:00:11.5]} 36... Kg8 {[%clk 0:00:06.1]} 37. Nc5 {[%clk 0:00:11.6]} 37... Kf7
{[%clk 0:00:02.4]} 38. Na6 {[%clk 0:00:10.9]} 38... Rd8 {[%clk 0:00:01.2]} 39.
Nc5 {[%clk 0:00:11.3]} 39... Rb8 {[%clk 0:00:01.5]} 40. Nbd7 {[%clk 0:00:11.5]}
40... Rd8 {[%clk 0:00:01.9]} 41. Nxb7 {[%clk 0:00:10.8]} 41... Rxd7 {[%clk
0:00:02.4]} 42. Nxd6+ {[%clk 0:00:10.9]} 42... Ke6 {[%clk 0:00:02.9]} 43. Rxd7
{[%clk 0:00:11]} 43... Kxd7 {[%clk 0:00:03.8]} 44. Nf5 {[%clk 0:00:10]} 44... g6
{[%clk 0:00:04.2]} 45. Ng3 {[%clk 0:00:10.1]} 45... Kd6 {[%clk 0:00:03.8]} 46.
Ne2 {[%clk 0:00:10.5]} 46... Ne4 {[%clk 0:00:04.4]} 47. f3 {[%clk 0:00:09.9]}
47... Ng5 {[%clk 0:00:04.4]} 48. Kg2 {[%clk 0:00:10.1]} 48... Kd7 {[%clk
0:00:04.4]} 49. h4 {[%clk 0:00:09.4]} 49... Ne6 {[%clk 0:00:04.4]} 50. Nf4
{[%clk 0:00:09.2]} 50... Nxf4+ {[%clk 0:00:04.1]} 51. exf4 {[%clk 0:00:10.1]}
51... Kd6 {[%clk 0:00:05]} 52. Rc5 {[%clk 0:00:09.8]} 52... Ke6 {[%clk
0:00:05.7]} 53. Rxb5 {[%clk 0:00:10]} 53... Kf5 {[%clk 0:00:06.6]} 54. Kg3
{[%clk 0:00:10.4]} 54... g5 {[%clk 0:00:06.5]} 55. hxg5 {[%clk 0:00:10.6]} 55...
Kg6 {[%clk 0:00:07.4]} 56. gxf6 {[%clk 0:00:10.6]} 56... Kh5 {[%clk 0:00:08.1]}
57. Rxd5+ {[%clk 0:00:10.1]} 57... Kh6 {[%clk 0:00:07.9]} 58. f7 {[%clk
0:00:09.8]} 58... Kg6 {[%clk 0:00:08.1]} 59. f8=Q {[%clk 0:00:10.3]} 59... h5
{[%clk 0:00:09]} 60. Rd7 {[%clk 0:00:10.6]} 60... h4+ {[%clk 0:00:09.9]} 61. Kf2
{[%clk 0:00:10.4]} 61... Kh5 {[%clk 0:00:10.3]} 62. Rg7 {[%clk 0:00:10.7]} 62...
h3 {[%clk 0:00:11.2]} 63. Qh8# {[%clk 0:00:11.5]} 1-0

[Event "*** SCC Grand Prix: Titled Tuesday Blitz"]
[Site "Chess.com"]
[Date "2020.09.29"]
[Round "3"]
[White "Ermito2020"]
[Black "Msb2"]
[Result "0-1"]
[WhiteElo "2674"]
[BlackElo "2915"]
[TimeControl "180+1"]
[EndTime "10:28:40 PDT"]
[Termination "Msb2 won on time"]

1. e4 {[%clk 0:03:00.9]} 1... e6 {[%clk 0:02:59.4]} 2. d4 {[%clk 0:03:00.2]}
2... d5 {[%clk 0:02:59.8]} 3. Nc3 {[%clk 0:03:00.8]} 3... Nf6 {[%clk 0:02:59.3]}
4. e5 {[%clk 0:03:00.9]} 4... Nfd7 {[%clk 0:02:56.3]} 5. f4 {[%clk 0:03:01.5]}
5... c5 {[%clk 0:02:54.2]} 6. Nf3 {[%clk 0:03:02]} 6... Nc6 {[%clk 0:02:54.8]}
7. Be3 {[%clk 0:03:02.3]} 7... a6 {[%clk 0:02:55]} 8. Be2 {[%clk 0:02:57.1]}
8... b5 {[%clk 0:02:53.3]} 9. Qd2 {[%clk 0:02:53.7]} 9... Be7 {[%clk 0:02:52.7]}
10. dxc5 {[%clk 0:02:52]} 10... Nxc5 {[%clk 0:02:50.5]} 11. Nd4 {[%clk
0:02:50.1]} 11... Qc7 {[%clk 0:02:48.9]} 12. O-O {[%clk 0:02:47.3]} 12... O-O
{[%clk 0:02:48.9]} 13. a3 {[%clk 0:02:42.8]} 13... Ne4 {[%clk 0:02:40.4]} 14.
Nxe4 {[%clk 0:02:39.6]} 14... dxe4 {[%clk 0:02:41.3]} 15. Qc3 {[%clk 0:02:32.4]}
15... Bb7 {[%clk 0:02:41.3]} 16. Nxc6 {[%clk 0:02:32.5]} 16... Bxc6 {[%clk
0:02:36.8]} 17. Bc5 {[%clk 0:02:32]} 17... Bd5 {[%clk 0:02:18.7]} 18. Bxe7
{[%clk 0:02:30.5]} 18... Qxe7 {[%clk 0:02:19.6]} 19. Qe3 {[%clk 0:02:28.6]}
19... f6 {[%clk 0:02:11.8]} 20. exf6 {[%clk 0:02:26.8]} 20... Rxf6 {[%clk
0:02:11.1]} 21. c3 {[%clk 0:02:26.3]} 21... Raf8 {[%clk 0:02:10.2]} 22. g3
{[%clk 0:02:25.2]} 22... e5 {[%clk 0:01:48.3]} 23. fxe5 {[%clk 0:02:06.1]} 23...
Qxe5 {[%clk 0:01:49.2]} 24. Rxf6 {[%clk 0:02:04.8]} 24... Rxf6 {[%clk 0:01:46]}
25. Rf1 {[%clk 0:02:05.1]} 25... Rxf1+ {[%clk 0:01:41.2]} 26. Bxf1 {[%clk
0:02:04.9]} 26... h5 {[%clk 0:01:40.6]} 27. Kf2 {[%clk 0:02:00.2]} 27... Qf6+
{[%clk 0:01:28.8]} 28. Qf4 {[%clk 0:01:58.8]} 28... Qb6+ {[%clk 0:01:29]} 29.
Qe3 {[%clk 0:01:57.9]} 29... Qe6 {[%clk 0:01:28.9]} 30. h4 {[%clk 0:01:54.2]}
30... Bc4 {[%clk 0:01:16]} 31. Be2 {[%clk 0:01:37.6]} 31... Bxe2 {[%clk
0:01:11.4]} 32. Kxe2 {[%clk 0:01:38.5]} 32... Qb3 {[%clk 0:01:07.5]} 33. Qd2
{[%clk 0:01:38.1]} 33... Qf7 {[%clk 0:01:00.9]} 34. Qe3 {[%clk 0:01:34.7]} 34...
Qc4+ {[%clk 0:00:59]} 35. Kd2 {[%clk 0:01:27.4]} 35... Qb3 {[%clk 0:00:44.8]}
36. Kc1 {[%clk 0:01:27.2]} 36... Qd5 {[%clk 0:00:42.3]} 37. Qd2 {[%clk
0:01:02.8]} 37... Qf5 {[%clk 0:00:30.3]} 38. Qf4 {[%clk 0:00:44.2]} 38... Qd5
{[%clk 0:00:20.5]} 39. Qe3 {[%clk 0:00:36.7]} 39... Kf7 {[%clk 0:00:20]} 40.
Qa7+ {[%clk 0:00:33.1]} 40... Kf6 {[%clk 0:00:19.8]} 41. Qxa6+ {[%clk
0:00:28.5]} 41... Ke5 {[%clk 0:00:17.4]} 42. Qb6 {[%clk 0:00:23.2]} 42... Kf5
{[%clk 0:00:07.2]} 43. Qe3 {[%clk 0:00:20.7]} 43... Kg4 {[%clk 0:00:07.2]} 44.
Kc2 {[%clk 0:00:05.9]} 44... Kh3 {[%clk 0:00:07.6]} 45. b3 {[%clk 0:00:05.4]}
45... g6 {[%clk 0:00:07.6]} 46. a4 {[%clk 0:00:04.5]} 46... bxa4 {[%clk
0:00:08.5]} 47. bxa4 {[%clk 0:00:04.8]} 47... Qa2+ {[%clk 0:00:09.1]} 48. Kc1
{[%clk 0:00:05.3]} 48... Qa1+ {[%clk 0:00:09.2]} 49. Kc2 {[%clk 0:00:05.4]}
49... Qxa4+ {[%clk 0:00:09.5]} 50. Kb2 {[%clk 0:00:05.3]} 50... Qb5+ {[%clk
0:00:09.8]} 51. Kc2 {[%clk 0:00:05.2]} 51... Qe5 {[%clk 0:00:09.9]} 52. c4
{[%clk 0:00:03.5]} 52... Qxg3 {[%clk 0:00:07.5]} 53. Qxg3+ {[%clk 0:00:03.1]}
53... Kxg3 {[%clk 0:00:08.4]} 54. c5 {[%clk 0:00:03.5]} 54... e3 {[%clk
0:00:07.4]} 55. c6 {[%clk 0:00:03.9]} 55... e2 {[%clk 0:00:07.9]} 56. c7 {[%clk
0:00:04.5]} 56... e1=Q {[%clk 0:00:08.5]} 57. c8=Q {[%clk 0:00:03.7]} 57... Qe4+
{[%clk 0:00:09.1]} 58. Kd2 {[%clk 0:00:03.2]} 58... Qxh4 {[%clk 0:00:08.9]} 59.
Qc6 {[%clk 0:00:02.5]} 59... Qf4+ {[%clk 0:00:08.8]} 60. Ke2 {[%clk 0:00:02.4]}
60... Qf2+ {[%clk 0:00:09.2]} 61. Kd3 {[%clk 0:00:02.5]} 61... Qf3+ {[%clk
0:00:10.1]} 0-1